[Event "Late-Titled-Tuesday-Blitz-February-06-2024"]
[Site "Chess.com"]
[Date "2024.02.06"]
[Round "1"]
[White "GMWSO"]
[Black "koncheto"]
[Result "1-0"]
[WhiteElo "3080"]
[BlackElo "2522"]
[TimeControl "180+1"]
[EndTime "14:06:23 PST"]
[Termination "GMWSO won on time"]

1. Nf3 {[%clk 0:03:00.9]} 1... Nf6 {[%clk 0:02:59.8]} 2. d4 {[%clk 0:03:00.5]}
2... e6 {[%clk 0:03:00.1]} 3. c4 {[%clk 0:03:01.1]} 3... c5 {[%clk 0:03:00.4]}
4. d5 {[%clk 0:03:00.7]} 4... exd5 {[%clk 0:03:01.3]} 5. cxd5 {[%clk 0:03:01.4]}
5... d6 {[%clk 0:03:02.1]} 6. Nc3 {[%clk 0:03:00.5]} 6... g6 {[%clk 0:03:02.6]}
7. Bf4 {[%clk 0:03:00.6]} 7... a6 {[%clk 0:03:02.2]} 8. a4 {[%clk 0:03:00.3]}
8... Qe7 {[%clk 0:03:01.8]} 9. e3 {[%clk 0:02:58.4]} 9... Bg4 {[%clk 0:03:00.8]}
10. Be2 {[%clk 0:02:54.5]} 10... Bxf3 {[%clk 0:03:00.2]} 11. Bxf3 {[%clk
0:02:55.4]} 11... Bg7 {[%clk 0:03:00]} 12. O-O {[%clk 0:02:52.9]} 12... O-O
{[%clk 0:02:59]} 13. Qb3 {[%clk 0:02:50.1]} 13... Qc7 {[%clk 0:02:47.1]} 14. a5
{[%clk 0:02:43.1]} 14... Nbd7 {[%clk 0:02:46]} 15. Na4 {[%clk 0:02:38.2]} 15...
Rab8 {[%clk 0:02:29.6]} 16. Rfc1 {[%clk 0:02:30.7]} 16... Rfc8 {[%clk
0:02:20.6]} 17. Qa3 {[%clk 0:02:17.5]} 17... Ne8 {[%clk 0:02:00.4]} 18. Nc3
{[%clk 0:01:55.6]} 18... b5 {[%clk 0:01:49.5]} 19. axb6 {[%clk 0:01:56.5]} 19...
Rxb6 {[%clk 0:01:49.1]} 20. Bg4 {[%clk 0:01:51.4]} 20... f5 {[%clk 0:01:25.7]}
21. Bh3 {[%clk 0:01:50.8]} 21... Rcb8 {[%clk 0:01:20.3]} 22. e4 {[%clk
0:01:41.8]} 22... fxe4 {[%clk 0:01:15.2]} 23. Be6+ {[%clk 0:01:15.9]} 23... Kh8
{[%clk 0:01:10.1]} 24. Nxe4 {[%clk 0:01:16.8]} 24... Bxb2 {[%clk 0:00:55.4]} 25.
Qh3 {[%clk 0:01:17]} 25... Bxa1 {[%clk 0:00:46]} 26. Ng5 {[%clk 0:01:12.5]}
26... Nf8 {[%clk 0:00:08]} 27. Nf7+ {[%clk 0:01:11.8]} 27... Kg8 {[%clk
0:00:06.1]} 28. Nxd6+ {[%clk 0:00:51.3]} 28... Nxe6 {[%clk 0:00:06]} 29. Qxe6+
{[%clk 0:00:52.2]} 29... Kg7 {[%clk 0:00:02.9]} 30. Nxe8+ {[%clk 0:00:50.8]} 1-0

[Event "Late-Titled-Tuesday-Blitz-February-06-2024"]
[Site "Chess.com"]
[Date "2024.02.06"]
[Round "1"]
[White "Schattman"]
[Black "Incognito_Knight"]
[Result "1/2-1/2"]
[WhiteElo "2393"]
[BlackElo "2716"]
[TimeControl "180+1"]
[EndTime "14:06:28 PST"]
[Termination "Game drawn by agreement"]

1. b3 {[%clk 0:03:00.9]} 1... d5 {[%clk 0:02:57.3]} 2. Bb2 {[%clk 0:02:58.2]}
2... Bf5 {[%clk 0:02:57.3]} 3. Nf3 {[%clk 0:02:54.6]} 3... Nf6 {[%clk
0:02:56.2]} 4. g3 {[%clk 0:02:54.8]} 4... e6 {[%clk 0:02:55.7]} 5. Bg2 {[%clk
0:02:55.2]} 5... h6 {[%clk 0:02:55.5]} 6. O-O {[%clk 0:02:54.8]} 6... Be7 {[%clk
0:02:56.1]} 7. c4 {[%clk 0:02:52.1]} 7... O-O {[%clk 0:02:54.8]} 8. d3 {[%clk
0:02:52.1]} 8... c6 {[%clk 0:02:54.9]} 9. Nbd2 {[%clk 0:02:50.1]} 9... a5 {[%clk
0:02:54.8]} 10. a3 {[%clk 0:02:48.9]} 10... Bh7 {[%clk 0:02:55]} 11. Re1 {[%clk
0:02:47.4]} 11... Nbd7 {[%clk 0:02:52.7]} 12. Ne5 {[%clk 0:02:47.2]} 12... Nxe5
{[%clk 0:02:49]} 13. Bxe5 {[%clk 0:02:46.8]} 13... Nd7 {[%clk 0:02:49.9]} 14.
Bb2 {[%clk 0:02:45.9]} 14... Bf6 {[%clk 0:02:50]} 15. Qc1 {[%clk 0:02:46.3]}
15... Re8 {[%clk 0:02:39.9]} 16. Bxf6 {[%clk 0:02:32.2]} 16... Qxf6 {[%clk
0:02:39.4]} 17. Ra2 {[%clk 0:02:31.4]} 17... Bg6 {[%clk 0:01:49.8]} 18. Qb2
{[%clk 0:02:29.3]} 18... Qxb2 {[%clk 0:01:35.6]} 19. Rxb2 {[%clk 0:02:30.2]}
19... b5 {[%clk 0:01:17.5]} 20. cxb5 {[%clk 0:02:22.1]} 20... cxb5 {[%clk
0:01:18.4]} 21. Rc1 {[%clk 0:02:21.5]} 21... Rec8 {[%clk 0:01:09.9]} 22. Rbc2
{[%clk 0:02:21.1]} 22... Nb6 {[%clk 0:00:53.7]} 23. Nf3 {[%clk 0:02:06.9]} 23...
Rxc2 {[%clk 0:00:47.9]} 24. Rxc2 {[%clk 0:02:06.5]} 24... Rc8 {[%clk 0:00:48.8]}
25. Rxc8+ {[%clk 0:02:03.6]} 25... Nxc8 {[%clk 0:00:49.7]} 26. Nd4 {[%clk
0:01:57]} 26... Na7 {[%clk 0:00:43.9]} 27. f4 {[%clk 0:01:44.9]} 27... Kf8
{[%clk 0:00:32.9]} 28. Kf2 {[%clk 0:01:44.2]} 28... Ke7 {[%clk 0:00:32.6]} 29.
e4 {[%clk 0:01:42.6]} 29... Kd6 {[%clk 0:00:21.8]} 30. b4 {[%clk 0:01:24.1]}
30... axb4 {[%clk 0:00:18.6]} 31. axb4 {[%clk 0:01:23.5]} 31... dxe4 {[%clk
0:00:18.1]} 32. dxe4 {[%clk 0:01:18.5]} 32... e5 {[%clk 0:00:18.1]} 33. fxe5+
{[%clk 0:00:59.2]} 33... Kxe5 {[%clk 0:00:19]} 34. Ke3 {[%clk 0:00:59.5]} 34...
f6 {[%clk 0:00:19]} 35. Bf1 {[%clk 0:00:50.8]} 1/2-1/2

[Event "Late-Titled-Tuesday-Blitz-February-06-2024"]
[Site "Chess.com"]
[Date "2024.02.06"]
[Round "1"]
[White "matagordo"]
[Black "Bilan_Danila"]
[Result "0-1"]
[WhiteElo "2228"]
[BlackElo "2606"]
[TimeControl "180+1"]
[EndTime "14:06:28 PST"]
[Termination "Bilan_Danila won by resignation"]

1. d4 {[%clk 0:03:00.9]} 1... d5 {[%clk 0:02:59.4]} 2. Bf4 {[%clk 0:03:01.5]}
2... Nf6 {[%clk 0:02:59]} 3. e3 {[%clk 0:03:02.1]} 3... c5 {[%clk 0:02:58.9]} 4.
Nf3 {[%clk 0:03:02.7]} 4... Nc6 {[%clk 0:02:58.6]} 5. Nbd2 {[%clk 0:03:03.3]}
5... Bg4 {[%clk 0:02:53.8]} 6. c3 {[%clk 0:03:02.6]} 6... e6 {[%clk 0:02:51.4]}
7. Be2 {[%clk 0:03:00.2]} 7... Bd6 {[%clk 0:02:49.5]} 8. Ne5 {[%clk 0:03:00.7]}
8... Bxe2 {[%clk 0:02:48.4]} 9. Qxe2 {[%clk 0:03:00.4]} 9... Bxe5 {[%clk
0:02:42.2]} 10. dxe5 {[%clk 0:02:55.3]} 10... Nd7 {[%clk 0:02:41.6]} 11. Qg4
{[%clk 0:02:55.6]} 11... Ncxe5 {[%clk 0:02:09.7]} 12. Qxg7 {[%clk 0:02:50.3]}
12... Nd3+ {[%clk 0:02:07.8]} 13. Kf1 {[%clk 0:02:46.2]} 13... Qf6 {[%clk
0:02:04.3]} 14. Qxf6 {[%clk 0:02:36.6]} 14... Nxf6 {[%clk 0:02:05.2]} 15. Bg3
{[%clk 0:02:28.7]} 15... O-O-O {[%clk 0:01:41]} 16. Rb1 {[%clk 0:02:23.9]} 16...
Ne4 {[%clk 0:01:25.1]} 17. Ke2 {[%clk 0:02:13.9]} 17... Nxd2 {[%clk 0:01:03.2]}
18. Kxd2 {[%clk 0:02:12.4]} 18... c4 {[%clk 0:01:02.4]} 19. h4 {[%clk 0:01:50]}
19... h5 {[%clk 0:01:01.3]} 20. b4 {[%clk 0:01:37.7]} 20... Rhg8 {[%clk
0:00:53.7]} 21. a4 {[%clk 0:01:30]} 21... Rg6 {[%clk 0:00:47.6]} 22. a5 {[%clk
0:01:21.4]} 22... Rdg8 {[%clk 0:00:45.5]} 23. Rh3 {[%clk 0:00:37.7]} 23... Kd7
{[%clk 0:00:39.5]} 24. b5 {[%clk 0:00:36.2]} 24... Nc5 {[%clk 0:00:38.3]} 25.
Ke2 {[%clk 0:00:20.3]} 25... Ne4 {[%clk 0:00:36]} 26. Kf3 {[%clk 0:00:10]} 26...
Nd2+ {[%clk 0:00:35.6]} 0-1

[Event "Late-Titled-Tuesday-Blitz-February-06-2024"]
[Site "Chess.com"]
[Date "2024.02.06"]
[Round "1"]
[White "Iuckyducky"]
[Black "Zavgorodniy_Sergiy"]
[Result "0-1"]
[WhiteElo "2278"]
[BlackElo "2615"]
[TimeControl "180+1"]
[EndTime "14:06:30 PST"]
[Termination "Zavgorodniy_Sergiy won by resignation"]

1. Nf3 {[%clk 0:02:56.4]} 1... d5 {[%clk 0:02:59.4]} 2. g3 {[%clk 0:02:56.6]}
2... Nf6 {[%clk 0:02:58.5]} 3. Bg2 {[%clk 0:02:57.2]} 3... e6 {[%clk 0:02:58.3]}
4. O-O {[%clk 0:02:57.3]} 4... Be7 {[%clk 0:02:58.4]} 5. c4 {[%clk 0:02:57.8]}
5... O-O {[%clk 0:02:57.4]} 6. d4 {[%clk 0:02:57.6]} 6... c6 {[%clk 0:02:57.4]}
7. Nc3 {[%clk 0:02:57.3]} 7... Nbd7 {[%clk 0:02:57.1]} 8. b3 {[%clk 0:02:54.7]}
8... b6 {[%clk 0:02:56.6]} 9. Bb2 {[%clk 0:02:55.1]} 9... Bb7 {[%clk 0:02:56]}
10. cxd5 {[%clk 0:02:51.8]} 10... cxd5 {[%clk 0:02:55.4]} 11. Rc1 {[%clk
0:02:52.1]} 11... Rc8 {[%clk 0:02:54.5]} 12. Qd2 {[%clk 0:02:51]} 12... a6
{[%clk 0:02:54.3]} 13. a4 {[%clk 0:02:46.1]} 13... Rc7 {[%clk 0:02:53.5]} 14.
Rc2 {[%clk 0:02:34.5]} 14... Bb4 {[%clk 0:02:53]} 15. Rfc1 {[%clk 0:02:17.4]}
15... Ne4 {[%clk 0:02:50.8]} 16. Qd3 {[%clk 0:02:17.6]} 16... Qb8 {[%clk
0:02:46.4]} 17. Ne5 {[%clk 0:01:25.8]} 17... Nxe5 {[%clk 0:02:34]} 18. dxe5
{[%clk 0:01:26]} 18... Nc5 {[%clk 0:02:11.1]} 19. Qd4 {[%clk 0:01:18.7]} 19...
a5 {[%clk 0:02:10.2]} 20. Qg4 {[%clk 0:00:32.2]} 20... Nxb3 {[%clk 0:02:01.6]}
21. Rd1 {[%clk 0:00:32.6]} 21... d4 {[%clk 0:01:59.5]} 22. Ne4 {[%clk
0:00:19.8]} 22... Rxc2 {[%clk 0:01:54.7]} 23. Nf6+ {[%clk 0:00:19.8]} 23... Kh8
{[%clk 0:01:55.2]} 24. Qh4 {[%clk 0:00:18.1]} 24... h6 {[%clk 0:01:54.8]} 25.
Ng4 {[%clk 0:00:11.2]} 25... Kh7 {[%clk 0:01:49.5]} 26. Nxh6 {[%clk 0:00:04.5]}
26... gxh6 {[%clk 0:01:49.2]} 27. Be4+ {[%clk 0:00:05.1]} 27... Bxe4 {[%clk
0:01:43.9]} 28. Qxe4+ {[%clk 0:00:06]} 28... Kg7 {[%clk 0:01:44.3]} 29. Qxc2
{[%clk 0:00:05.8]} 29... Nc5 {[%clk 0:01:35.9]} 30. Bxd4 {[%clk 0:00:04.3]}
30... Rd8 {[%clk 0:01:32.3]} 31. e3 {[%clk 0:00:03.7]} 31... Qb7 {[%clk
0:01:27.6]} 32. Qe2 {[%clk 0:00:04]} 32... Qe4 {[%clk 0:01:26.2]} 33. Qh5 {[%clk
0:00:03.8]} 33... Nb3 {[%clk 0:01:20.4]} 34. h4 {[%clk 0:00:02.8]} 34... Nxd4
{[%clk 0:01:17.8]} 35. exd4 {[%clk 0:00:03.7]} 35... Rxd4 {[%clk 0:01:17.8]} 36.
Rc1 {[%clk 0:00:03.9]} 36... Bc5 {[%clk 0:01:09.2]} 37. Kh2 {[%clk 0:00:02.5]}
37... Rd2 {[%clk 0:01:08]} 38. Rf1 {[%clk 0:00:01.8]} 38... Bxf2 {[%clk
0:01:05.9]} 39. Rxf2 {[%clk 0:00:02.7]} 39... Rxf2+ {[%clk 0:01:05.6]} 0-1

[Event "Late-Titled-Tuesday-Blitz-February-06-2024"]
[Site "Chess.com"]
[Date "2024.02.06"]
[Round "1"]
[White "Zallio"]
[Black "prime-morty"]
[Result "0-1"]
[WhiteElo "2119"]
[BlackElo "2571"]
[TimeControl "180+1"]
[EndTime "14:06:34 PST"]
[Termination "prime-morty won by resignation"]

1. d4 {[%clk 0:02:58.4]} 1... d6 {[%clk 0:02:58.8]} 2. e4 {[%clk 0:02:57.2]}
2... Nf6 {[%clk 0:02:58.7]} 3. Nc3 {[%clk 0:02:57]} 3... e5 {[%clk 0:02:58.5]}
4. Nf3 {[%clk 0:02:55.9]} 4... Nbd7 {[%clk 0:02:57.7]} 5. Bd3 {[%clk 0:02:49.5]}
5... Be7 {[%clk 0:02:53.6]} 6. dxe5 {[%clk 0:02:47.6]} 6... dxe5 {[%clk
0:02:53.4]} 7. Bg5 {[%clk 0:02:42.3]} 7... c6 {[%clk 0:02:52.8]} 8. Qd2 {[%clk
0:02:41.4]} 8... h6 {[%clk 0:02:51.8]} 9. Bh4 {[%clk 0:02:41.7]} 9... Qa5 {[%clk
0:02:49.2]} 10. O-O-O {[%clk 0:02:40.1]} 10... Bb4 {[%clk 0:02:49]} 11. Kb1
{[%clk 0:02:37.8]} 11... Bxc3 {[%clk 0:02:44.4]} 12. Qxc3 {[%clk 0:02:36.3]}
12... Qxc3 {[%clk 0:02:44.4]} 13. bxc3 {[%clk 0:02:37.2]} 13... Nh5 {[%clk
0:02:40.4]} 14. Bg3 {[%clk 0:02:32.3]} 14... Nxg3 {[%clk 0:02:38]} 15. hxg3
{[%clk 0:02:32.1]} 15... Ke7 {[%clk 0:02:35.5]} 16. g4 {[%clk 0:02:26.6]} 16...
Rd8 {[%clk 0:02:23.9]} 17. Bc4 {[%clk 0:02:23.4]} 17... b5 {[%clk 0:02:13.6]}
18. Bb3 {[%clk 0:02:21.7]} 18... a5 {[%clk 0:02:13.8]} 19. a4 {[%clk 0:02:20.9]}
19... bxa4 {[%clk 0:02:05.7]} 20. Bxa4 {[%clk 0:02:20.7]} 20... Ra6 {[%clk
0:02:06.3]} 21. Rd2 {[%clk 0:02:03.5]} 21... Nc5 {[%clk 0:01:56.3]} 22. Rxd8
{[%clk 0:01:58.8]} 22... Kxd8 {[%clk 0:01:55.8]} 23. Rd1+ {[%clk 0:01:55.2]}
23... Kc7 {[%clk 0:01:50.1]} 24. Bb3 {[%clk 0:01:51.3]} 24... f6 {[%clk
0:01:48.2]} 25. Nd2 {[%clk 0:01:30.6]} 25... Bxg4 {[%clk 0:01:38.9]} 26. f3
{[%clk 0:01:31]} 26... Bd7 {[%clk 0:01:20.8]} 27. Bc4 {[%clk 0:01:29.1]} 27...
Rb6+ {[%clk 0:01:19.9]} 28. Ka2 {[%clk 0:01:24.8]} 28... Na4 {[%clk 0:01:19.3]}
29. Nb1 {[%clk 0:01:16.2]} 29... Rxb1 {[%clk 0:01:19]} 30. Rxb1 {[%clk
0:01:14.3]} 30... Nxc3+ {[%clk 0:01:18.7]} 31. Kb2 {[%clk 0:01:14.8]} 31... Nxb1
{[%clk 0:01:18.9]} 32. Kxb1 {[%clk 0:01:15.4]} 32... Kd6 {[%clk 0:01:19]} 33.
Kb2 {[%clk 0:01:13.3]} 33... Kc5 {[%clk 0:01:19.2]} 34. Kc3 {[%clk 0:01:13.4]}
34... h5 {[%clk 0:01:15.7]} 35. Bf7 {[%clk 0:01:12]} 35... h4 {[%clk 0:01:15.7]}
36. Bc4 {[%clk 0:01:07.6]} 36... a4 {[%clk 0:01:10.8]} 37. Bf7 {[%clk
0:01:00.5]} 37... Bc8 {[%clk 0:01:08.5]} 38. Bc4 {[%clk 0:00:59.8]} 38... g5
{[%clk 0:01:02.6]} 39. Bf7 {[%clk 0:00:54]} 39... f5 {[%clk 0:01:02.8]} 40. exf5
{[%clk 0:00:53.5]} 40... Bxf5 {[%clk 0:01:03.7]} 41. Bc4 {[%clk 0:00:51.8]}
41... e4 {[%clk 0:01:03.7]} 42. fxe4 {[%clk 0:00:51.5]} 42... Bxe4 {[%clk
0:01:04.1]} 43. Bf1 {[%clk 0:00:51.7]} 43... Bd5 {[%clk 0:01:02.3]} 44. Kb2
{[%clk 0:00:43.7]} 44... Kd4 {[%clk 0:01:02]} 45. Ka3 {[%clk 0:00:42.6]} 45...
Kc3 {[%clk 0:01:00.6]} 46. Kxa4 {[%clk 0:00:40.5]} 46... Bc4 {[%clk 0:01:01.2]}
47. Bd3 {[%clk 0:00:35.7]} 47... Bxd3 {[%clk 0:01:00.8]} 48. cxd3 {[%clk
0:00:36.2]} 48... Kxd3 {[%clk 0:01:01.5]} 49. Kb4 {[%clk 0:00:36.8]} 49... g4
{[%clk 0:01:01.8]} 50. Kc5 {[%clk 0:00:36.6]} 50... h3 {[%clk 0:01:02.3]} 0-1

[Event "Late-Titled-Tuesday-Blitz-February-06-2024"]
[Site "Chess.com"]
[Date "2024.02.06"]
[Round "1"]
[White "smotherhubbard"]
[Black "kingofthenil"]
[Result "0-1"]
[WhiteElo "2375"]
[BlackElo "2694"]
[TimeControl "180+1"]
[EndTime "14:06:35 PST"]
[Termination "kingofthenil won by resignation"]

1. d4 {[%clk 0:03:00.9]} 1... d6 {[%clk 0:01:25.3]} 2. e4 {[%clk 0:02:59.2]}
2... Nf6 {[%clk 0:01:15.1]} 3. Nc3 {[%clk 0:02:58.8]} 3... Nc6 {[%clk
0:01:12.7]} 4. Nf3 {[%clk 0:02:46.1]} 4... e5 {[%clk 0:01:11.8]} 5. Bb5 {[%clk
0:02:38.2]} 5... exd4 {[%clk 0:01:11.1]} 6. Nxd4 {[%clk 0:02:37.4]} 6... Bd7
{[%clk 0:01:11.7]} 7. Nxc6 {[%clk 0:02:34.2]} 7... bxc6 {[%clk 0:01:12.6]} 8.
Bd3 {[%clk 0:02:34.2]} 8... Be7 {[%clk 0:01:11.1]} 9. O-O {[%clk 0:02:34]} 9...
O-O {[%clk 0:01:12]} 10. f4 {[%clk 0:02:33.7]} 10... d5 {[%clk 0:01:11.6]} 11.
e5 {[%clk 0:02:32.6]} 11... Ng4 {[%clk 0:01:11.5]} 12. h3 {[%clk 0:02:20.4]}
12... Bc5+ {[%clk 0:01:10.7]} 13. Kh1 {[%clk 0:02:17.5]} 13... Nf2+ {[%clk
0:01:11.6]} 14. Rxf2 {[%clk 0:02:16.8]} 14... Bxf2 {[%clk 0:01:12.5]} 15. Qh5
{[%clk 0:02:06.6]} 15... g6 {[%clk 0:01:11.9]} 16. Qh6 {[%clk 0:02:07]} 16...
Qh4 {[%clk 0:01:10.3]} 17. Qxh4 {[%clk 0:01:51.6]} 17... Bxh4 {[%clk 0:01:11.2]}
18. Be3 {[%clk 0:01:51.5]} 18... f6 {[%clk 0:01:08.5]} 19. Na4 {[%clk 0:01:44]}
19... fxe5 {[%clk 0:01:07.7]} 20. fxe5 {[%clk 0:01:44.9]} 20... Bf2 {[%clk
0:01:04.8]} 21. Bxf2 {[%clk 0:01:40.5]} 21... Rxf2 {[%clk 0:01:04.9]} 22. Nc5
{[%clk 0:01:38.7]} 22... Bf5 {[%clk 0:01:04.5]} 23. Kg1 {[%clk 0:01:37.5]} 23...
Rd2 {[%clk 0:01:04.8]} 24. Rc1 {[%clk 0:01:29.8]} 24... Bxd3 {[%clk 0:01:00.7]}
25. Nxd3 {[%clk 0:01:28.2]} 25... Re8 {[%clk 0:00:58.3]} 26. b4 {[%clk
0:01:24.2]} 26... a5 {[%clk 0:00:53.9]} 27. a3 {[%clk 0:01:21.7]} 27... axb4
{[%clk 0:00:54.2]} 28. axb4 {[%clk 0:01:19.7]} 28... Ra8 {[%clk 0:00:54.8]} 29.
Nf4 {[%clk 0:01:09]} 29... Ra2 {[%clk 0:00:52.2]} 30. Ne6 {[%clk 0:01:03.7]}
30... Raxc2 {[%clk 0:00:49.9]} 31. Rxc2 {[%clk 0:01:03.2]} 31... Rxc2 {[%clk
0:00:50.8]} 32. Nxc7 {[%clk 0:01:03.2]} 32... Re2 {[%clk 0:00:47.1]} 33. e6
{[%clk 0:01:03]} 33... Kf8 {[%clk 0:00:47.5]} 34. Kf1 {[%clk 0:01:03.1]} 34...
Re4 {[%clk 0:00:47.7]} 35. Na6 {[%clk 0:00:56.8]} 35... Ke7 {[%clk 0:00:46.1]}
36. Kf2 {[%clk 0:00:48.9]} 36... Rxe6 {[%clk 0:00:44.6]} 37. Nc5 {[%clk
0:00:48.1]} 37... Re5 {[%clk 0:00:44]} 38. g4 {[%clk 0:00:46.9]} 38... Kd6
{[%clk 0:00:43.5]} 39. Kf3 {[%clk 0:00:46.2]} 39... g5 {[%clk 0:00:43]} 40. Nd3
{[%clk 0:00:42.6]} 40... Re4 {[%clk 0:00:42.7]} 41. Kf2 {[%clk 0:00:37.6]} 41...
Rd4 {[%clk 0:00:40.8]} 42. Ke3 {[%clk 0:00:37.4]} 42... Rxd3+ {[%clk 0:00:41.1]}
43. Kxd3 {[%clk 0:00:37.5]} 43... Ke5 {[%clk 0:00:42]} 44. Ke3 {[%clk
0:00:36.7]} 44... d4+ {[%clk 0:00:42.3]} 45. Kd3 {[%clk 0:00:36.8]} 45... Kd5
{[%clk 0:00:42.8]} 0-1

[Event "Late-Titled-Tuesday-Blitz-February-06-2024"]
[Site "Chess.com"]
[Date "2024.02.06"]
[Round "1"]
[White "Onthequiet"]
[Black "Kosak12"]
[Result "0-1"]
[WhiteElo "2440"]
[BlackElo "2821"]
[TimeControl "180+1"]
[EndTime "14:06:46 PST"]
[Termination "Kosak12 won on time"]

1. d4 {[%clk 0:03:00]} 1... d5 {[%clk 0:02:55.9]} 2. Nf3 {[%clk 0:02:59.9]} 2...
Nf6 {[%clk 0:02:54.5]} 3. c4 {[%clk 0:02:59.7]} 3... e6 {[%clk 0:02:54]} 4. Nc3
{[%clk 0:02:56.7]} 4... Bb4 {[%clk 0:02:47.5]} 5. a3 {[%clk 0:02:53.4]} 5...
Bxc3+ {[%clk 0:02:45.6]} 6. bxc3 {[%clk 0:02:54.3]} 6... c5 {[%clk 0:02:42.5]}
7. e3 {[%clk 0:02:52.8]} 7... O-O {[%clk 0:02:39.3]} 8. Be2 {[%clk 0:02:51.6]}
8... dxc4 {[%clk 0:02:33.2]} 9. Bxc4 {[%clk 0:02:50.8]} 9... Qc7 {[%clk
0:02:32.8]} 10. Qe2 {[%clk 0:02:49.7]} 10... b6 {[%clk 0:02:21.5]} 11. O-O
{[%clk 0:02:45.3]} 11... Bb7 {[%clk 0:02:19.8]} 12. Ne5 {[%clk 0:02:19.6]} 12...
Nc6 {[%clk 0:01:50.5]} 13. f4 {[%clk 0:02:13.8]} 13... Rac8 {[%clk 0:01:49.8]}
14. Ba6 {[%clk 0:02:06]} 14... Bxa6 {[%clk 0:01:39.8]} 15. Qxa6 {[%clk
0:02:05.1]} 15... cxd4 {[%clk 0:01:15.4]} 16. cxd4 {[%clk 0:02:04]} 16... Nxe5
{[%clk 0:01:06.6]} 17. fxe5 {[%clk 0:01:46.7]} 17... Nd5 {[%clk 0:01:05.8]} 18.
e4 {[%clk 0:01:30.5]} 18... Nc3 {[%clk 0:01:02.5]} 19. Re1 {[%clk 0:00:49.2]}
19... Rfd8 {[%clk 0:00:58.6]} 20. d5 {[%clk 0:00:17.5]} 20... Qxe5 {[%clk
0:00:31.9]} 21. Bb2 {[%clk 0:00:10.9]} 21... exd5 {[%clk 0:00:25.8]} 22. exd5
{[%clk 0:00:02.7]} 22... Qxd5 {[%clk 0:00:24.9]} 23. Bxc3 {[%clk 0:00:01.6]}
23... Rxc3 {[%clk 0:00:24.6]} 24. Qxa7 {[%clk 0:00:01.5]} 24... Rc2 {[%clk
0:00:22.4]} 0-1

[Event "Late-Titled-Tuesday-Blitz-February-06-2024"]
[Site "Chess.com"]
[Date "2024.02.06"]
[Round "1"]
[White "kai_nov"]
[Black "Reality-Stone"]
[Result "0-1"]
[WhiteElo "2301"]
[BlackElo "2626"]
[TimeControl "180+1"]
[EndTime "14:06:51 PST"]
[Termination "Reality-Stone won on time"]

1. d4 {[%clk 0:03:00.9]} 1... e6 {[%clk 0:02:54.3]} 2. c4 {[%clk 0:02:57.2]}
2... b6 {[%clk 0:02:54.5]} 3. a3 {[%clk 0:02:55.8]} 3... Bb7 {[%clk 0:02:54.5]}
4. Nc3 {[%clk 0:02:56.3]} 4... Nf6 {[%clk 0:02:54.8]} 5. d5 {[%clk 0:02:56.7]}
5... Na6 {[%clk 0:02:53.7]} 6. g3 {[%clk 0:02:56]} 6... exd5 {[%clk 0:02:46.2]}
7. cxd5 {[%clk 0:02:54]} 7... Nc5 {[%clk 0:02:46.6]} 8. Bg2 {[%clk 0:02:53.6]}
8... a5 {[%clk 0:02:47.1]} 9. Nf3 {[%clk 0:02:35.2]} 9... Bd6 {[%clk 0:02:46.1]}
10. O-O {[%clk 0:02:34.7]} 10... O-O {[%clk 0:02:46.3]} 11. Nd4 {[%clk
0:02:21.7]} 11... Be5 {[%clk 0:02:42.7]} 12. Re1 {[%clk 0:02:11.4]} 12... Bxd4
{[%clk 0:02:41.1]} 13. Qxd4 {[%clk 0:02:11]} 13... Nb3 {[%clk 0:02:41.5]} 14.
Qd1 {[%clk 0:02:04.1]} 14... Nxa1 {[%clk 0:02:41.6]} 15. Be3 {[%clk 0:02:01.4]}
15... Re8 {[%clk 0:02:37.8]} 16. Qxa1 {[%clk 0:02:00.6]} 16... Rxe3 {[%clk
0:02:38]} 17. fxe3 {[%clk 0:02:00.5]} 17... Qe7 {[%clk 0:02:38.5]} 18. e4 {[%clk
0:01:57.4]} 18... Ng4 {[%clk 0:02:30.2]} 19. e3 {[%clk 0:01:52.7]} 19... Ne5
{[%clk 0:02:28.6]} 20. Qd1 {[%clk 0:01:49.8]} 20... d6 {[%clk 0:02:26]} 21. Nb5
{[%clk 0:01:38.4]} 21... Ba6 {[%clk 0:02:24.5]} 22. Nd4 {[%clk 0:01:38.5]} 22...
g6 {[%clk 0:02:20]} 23. Qc2 {[%clk 0:01:28.1]} 23... Re8 {[%clk 0:02:10]} 24. h3
{[%clk 0:00:51.9]} 24... h5 {[%clk 0:02:08.1]} 25. Qc3 {[%clk 0:00:47.6]} 25...
Qg5 {[%clk 0:02:05.2]} 26. Kh2 {[%clk 0:00:45.6]} 26... Re7 {[%clk 0:02:01.9]}
27. Bf1 {[%clk 0:00:34.5]} 27... Bc8 {[%clk 0:01:53.9]} 28. Be2 {[%clk
0:00:27.9]} 28... h4 {[%clk 0:01:45.9]} 29. g4 {[%clk 0:00:26.9]} 29... Kg7
{[%clk 0:01:41.7]} 30. Rf1 {[%clk 0:00:24]} 30... f6 {[%clk 0:01:41.2]} 31. Rf4
{[%clk 0:00:21.8]} 31... Qh6 {[%clk 0:01:39.6]} 32. b4 {[%clk 0:00:14.3]} 32...
axb4 {[%clk 0:01:37.8]} 33. axb4 {[%clk 0:00:15.2]} 33... Qh8 {[%clk 0:01:36.7]}
34. Nc6 {[%clk 0:00:12.2]} 34... Rf7 {[%clk 0:01:31.3]} 35. Nxe5 {[%clk
0:00:10.6]} 35... dxe5 {[%clk 0:01:32.2]} 36. Rf2 {[%clk 0:00:09.1]} 36... Qe8
{[%clk 0:01:31.5]} 37. b5 {[%clk 0:00:06.9]} 37... Qe7 {[%clk 0:01:30.3]} 38.
Bd3 {[%clk 0:00:06]} 38... Rf8 {[%clk 0:01:29.9]} 39. Rf3 {[%clk 0:00:05.1]}
39... Qd6 {[%clk 0:01:28.1]} 40. Rf2 {[%clk 0:00:04.6]} 40... Bd7 {[%clk
0:01:28.3]} 41. Rf3 {[%clk 0:00:04.1]} 41... Ra8 {[%clk 0:01:27.7]} 42. Rf2
{[%clk 0:00:03.4]} 42... Ra3 {[%clk 0:01:27.9]} 43. Qc2 {[%clk 0:00:02.8]} 43...
Qc5 {[%clk 0:01:15.8]} 44. Qe2 {[%clk 0:00:01.3]} 44... Rc3 {[%clk 0:01:10]} 45.
Qf3 {[%clk 0:00:01.4]} 45... Qd6 {[%clk 0:01:10.3]} 0-1